bitfinex-derivatives/quotes_BTCF0:USTF0_20250121
["timestamp","ask_amount","ask_price","bid_price","bid_amount"]
[1737459610833,0.24553091,103960.0,103950.0,0.44748]
[1737459611021,0.24553091,103960.0,103950.0,0.08668]
[1737459611222,0.60633091,103960.0,103930.0,0.3608]
[1737459611427,0.11283991,103940.0,103930.0,0.3608]
[1737459611633,0.048159,103930.0,103920.0,0.3608]
[1737459611822,0.24474491,103930.0,103920.0,0.3608]
[1737459612026,0.048164,103920.0,103910.0,0.3608]
[1737459612228,0.11284991,103920.0,103910.0,0.64516421]
[1737459612824,0.11284991,103920.0,103910.0,0.28436421]
[1737459613031,0.47364991,103920.0,103910.0,0.28436421]
[1737459613428,0.47464991,103920.0,103910.0,0.29236421]
[1737459614535,0.049164,103920.0,103910.0,0.65616421]
[1737459616235,0.049164,103920.0,103910.0,0.43648591]
[1737459616429,0.049164,103920.0,103910.0,0.3718]
[1737459617136,0.11384991,103920.0,103910.0,0.3718]
[1737459618641,0.049164,103920.0,103910.0,0.3718]
[1737459618846,0.049164,103920.0,103910.0,0.419968]
[1737459619039,0.049164,103920.0,103910.0,0.48465391]
[1737459619341,0.049164,103920.0,103910.0,0.55045391]
[1737459619545,0.049164,103920.0,103910.0,0.485768]
[1737459619734,0.049164,103920.0,103910.0,0.552268]
[1737459620039,0.048164,103920.0,103910.0,0.4971]
[1737459620841,0.048164,103920.0,103910.0,0.4941]
[1737459621441,0.048164,103920.0,103910.0,0.3628]
[1737459621644,0.11284991,103920.0,103910.0,0.3628]
[1737459621837,0.18324991,103920.0,103910.0,0.3628]
[1737459622434,0.118564,103920.0,103910.0,0.3628]
[1737459622642,0.118564,103920.0,103910.0,0.3618]
[1737459622843,0.048168,103910.0,103900.0,0.3608]
[1737459623035,0.11285391,103910.0,103900.0,0.3608]
[1737459623434,0.24525391,103910.0,103900.0,0.3608]
[1737459623741,0.180568,103910.0,103900.0,0.3608]
[1737459623948,0.24525391,103910.0,103900.0,0.3608]
[1737459624944,0.048182,103880.0,103870.0,0.22720296]
[1737459625245,0.11286791,103880.0,103870.0,0.22720296]
[1737459625639,0.17996791,103880.0,103870.0,0.22720296]
[1737459625835,0.24346791,103880.0,103870.0,0.22720296]
[1737459626147,0.179782,103880.0,103870.0,0.59600296]
[1737459626349,0.049182,103880.0,103870.0,0.59600296]
[1737459626545,0.049182,103880.0,103870.0,0.77577587]
[1737459626749,0.001,103880.0,103870.0,0.77577587]
[1737459627049,0.001,103880.0,103870.0,0.55157291]
[1737459627638,0.048174,103900.0,103870.0,0.54857291]
[1737459627842,0.177266,103920.0,103900.0,0.048171]
[1737459628038,0.048166,103920.0,103910.0,0.3608]
[1737459628240,0.048166,103920.0,103910.0,0.4945]
[1737459628435,0.05757813,103930.0,103910.0,0.903466]
[1737459628641,0.05757813,103930.0,103920.0,0.3608]
[1737459629041,0.12226404,103930.0,103920.0,0.3608]
[1737459629646,0.17898181,103930.0,103920.0,0.3608]
[1737459630150,0.048173,103910.0,103900.0,0.3608]
[1737459632140,0.16957668,103910.0,103900.0,0.3608]
[1737459632339,0.048173,103910.0,103900.0,0.3608]
[1737459633940,0.048173,103910.0,103860.0,0.51165396]
[1737459633941,0.048173,103900.0,103860.0,0.51165396]
[1737459634138,0.16958168,103890.0,103880.0,0.08576]
[1737459634740,0.048178,103890.0,103880.0,0.08576]
[1737459634948,0.048178,103890.0,103880.0,0.44656]
[1737459635447,0.16958168,103890.0,103880.0,0.45156]
[1737459635643,0.16958168,103890.0,103880.0,0.09076]
[1737459635854,0.53038168,103890.0,103880.0,0.09076]
[1737459636146,0.16958168,103890.0,103880.0,0.3658]
[1737459636346,0.16958168,103890.0,103880.0,0.005]
[1737459636949,0.16958168,103890.0,103880.0,0.006]
[1737459637152,0.16958168,103890.0,103880.0,0.001]
[1737459637451,0.048187,103870.0,103860.0,0.48036679]
[1737459637949,0.048187,103870.0,103860.0,0.11956679]
[1737459638449,0.048187,103870.0,103860.0,0.11948]
[1737459638450,0.53039068,103870.0,103860.0,0.11948]
[1737459638652,0.36919068,103870.0,103860.0,0.11948]
[1737459638847,0.048187,103870.0,103860.0,0.12548]
[1737459639448,0.048187,103870.0,103860.0,0.006]
[1737459639851,0.16959068,103870.0,103860.0,0.006]
[1737459640052,0.16959068,103870.0,103860.0,0.3668]
[1737459640554,0.17059068,103870.0,103860.0,0.3658]
[1737459640752,0.049187,103870.0,103860.0,0.4351]
[1737459640945,0.049187,103870.0,103860.0,0.4301]
[1737459641353,0.048187,103870.0,103860.0,0.4301]
[1737459641655,0.049187,103870.0,103860.0,0.4301]
[1737459643148,0.049187,103870.0,103860.0,0.5207]
[1737459643552,0.048187,103870.0,103860.0,0.5217]
[1737459643758,0.16959068,103870.0,103860.0,0.0916]
[1737459644267,0.68773784,103890.0,103860.0,0.4524]
[1737459644460,0.048184,103880.0,103870.0,0.048186]
[1737459644649,0.048184,103880.0,103870.0,0.3608]
[1737459645159,0.048183,103880.0,103870.0,0.3608]
[1737459645363,0.048183,103880.0,103870.0,0.474287]
[1737459645654,0.13083784,103890.0,103870.0,0.474287]
[1737459645848,0.04818,103890.0,103880.0,0.3608]
[1737459646253,0.16958368,103890.0,103880.0,0.3608]
[1737459646453,0.16958368,103890.0,103870.0,0.4261]
[1737459646454,0.048182,103880.0,103870.0,0.4261]
[1737459647156,0.16958568,103880.0,103860.0,0.50344]
[1737459647359,0.048187,103870.0,103860.0,0.50344]
[1737459647550,0.048187,103870.0,103860.0,0.551631]
[1737459647863,0.048187,103870.0,103860.0,0.50344]
[1737459648553,0.53039068,103870.0,103860.0,0.14264]
[1737459648758,0.59279068,103870.0,103860.0,0.14264]
[1737459649564,0.110587,103870.0,103860.0,0.14264]
[1737459649858,0.110587,103870.0,103860.0,0.14364]
[1737459650060,0.59279068,103870.0,103860.0,0.14364]
[1737459650259,0.23199068,103870.0,103860.0,0.14364]
[1737459650762,0.23299068,103870.0,103860.0,0.14364]
[1737459650958,0.59379068,103870.0,103860.0,0.14364]
[1737459651161,0.23299068,103870.0,103860.0,0.14364]
[1737459651359,0.59379068,103870.0,103860.0,0.14364]
[1737459651551,0.23299068,103870.0,103860.0,0.14364]
[1737459651956,0.59379068,103870.0,103860.0,0.001]
[1737459652157,0.23299068,103870.0,103860.0,0.001]
[1737459652458,0.111587,103870.0,103850.0,0.3608]
[1737459652659,0.048192,103860.0,103850.0,0.3608]
[1737459653660,0.048192,103860.0,103850.0,0.408996]
[1737459653857,0.048192,103860.0,103850.0,0.409996]
[1737459654064,0.048192,103860.0,103850.0,0.3618]
[1737459655855,0.048192,103860.0,103850.0,0.3608]
[1737459656165,0.16959568,103860.0,103850.0,0.3618]
[1737459656760,0.16959568,103860.0,103850.0,0.001]
[1737459657554,0.53039568,103860.0,103850.0,0.001]
[1737459659765,0.47383399,103860.0,103850.0,0.001]
[1737459661767,0.11303399,103860.0,103850.0,0.001]
[1737459662171,0.48337791,103860.0,103850.0,0.001]
[1737459662367,0.12257791,103860.0,103850.0,0.001]
[1737459662565,0.1874199,103860.0,103850.0,0.001]
[1737459662767,0.048196,103850.0,103840.0,0.41956]
[1737459663068,0.24283799,103850.0,103840.0,0.05876]
[1737459663271,0.60363799,103850.0,103840.0,0.05876]
[1737459664365,0.60363799,103850.0,103840.0,0.05976]
[1737459664967,0.24283799,103850.0,103840.0,0.05976]
[1737459665168,0.05773792,103860.0,103840.0,0.84620199]
[1737459665372,0.05773792,103860.0,103850.0,0.552]
[1737459665769,0.05773792,103860.0,103850.0,0.1912]
[1737459666078,0.048194,103860.0,103850.0,0.1912]
[1737459666576,0.048194,103860.0,103850.0,0.552]
[1737459666775,0.049194,103860.0,103850.0,0.600196]
[1737459666969,0.049194,103860.0,103850.0,0.552]
[1737459667175,0.1707384,103860.0,103850.0,0.25964]
[1737459667773,0.1697384,103860.0,103850.0,0.21635728]
[1737459667971,0.5305384,103860.0,103850.0,0.09035728]
[1737459668168,0.2370384,103860.0,103850.0,0.09035728]
[1737459668575,0.5978384,103860.0,103850.0,0.09035728]
[1737459669172,0.2370384,103860.0,103850.0,0.09435728]
[1737459669578,0.5978384,103860.0,103850.0,0.09535728]
[1737459669782,0.5978384,103860.0,103850.0,0.09035728]
[1737459670077,0.5978384,103860.0,103850.0,0.02191728]
[1737459670872,0.5988384,103860.0,103850.0,0.02091728]
[1737459672674,0.5978384,103860.0,103850.0,0.02091728]
[1737459672878,0.048201,103840.0,103830.0,0.1292]
[1737459673077,0.1697454,103840.0,103830.0,0.1292]
[1737459673282,0.048201,103840.0,103830.0,0.1292]
[1737459673579,0.5305454,103840.0,103830.0,0.1292]
[1737459673780,0.409001,103840.0,103830.0,0.1292]
[1737459674183,0.409001,103840.0,103830.0,0.1302]
[1737459674379,0.048201,103840.0,103830.0,0.1302]
[1737459674780,0.048201,103840.0,103830.0,0.178406]
[1737459675078,0.2507444,103850.0,103830.0,0.539206]
[1737459675273,0.5496444,103860.0,103830.0,0.3618]
[1737459675476,0.1215444,103870.0,103850.0,0.408996]
[1737459675678,0.2011,103880.0,103860.0,0.048188]
[1737459675878,0.114785,103880.0,103860.0,0.408988]
[1737459676189,0.048185,103880.0,103870.0,0.3608]
[1737459676679,0.048185,103880.0,103870.0,0.4292]
[1737459676887,0.1697294,103880.0,103870.0,0.4292]
[1737459677085,0.048191,103870.0,103850.0,0.537595]
[1737459677281,0.1215444,103860.0,103850.0,0.5578]
[1737459677480,0.1697364,103860.0,103840.0,0.409]
[1737459677678,0.1697364,103860.0,103840.0,0.3608]
[1737459677679,0.048196,103850.0,103840.0,0.3608]
[1737459678084,0.048193,103860.0,103840.0,0.409]
[1737459678694,0.048193,103860.0,103850.0,0.17104013]
[1737459679883,0.048193,103860.0,103850.0,0.17204013]
[1737459680284,0.5305374,103860.0,103850.0,0.17704013]
[1737459680477,0.54012201,103860.0,103850.0,0.17704013]
[1737459681082,0.54012201,103860.0,103850.0,0.006]
[1737459681490,0.17932201,103860.0,103850.0,0.006]
[1737459682691,0.17932201,103860.0,103850.0,0.001]
[1737459682883,0.048201,103840.0,103830.0,1.07786309]
[1737459683084,0.1697454,103840.0,103830.0,0.71706309]
[1737459683290,0.048201,103840.0,103830.0,0.71706309]
[1737459683683,0.048201,103840.0,103830.0,0.58716309]
[1737459684081,0.048201,103840.0,103830.0,0.51976309]
[1737459684082,0.1697454,103840.0,103830.0,0.51976309]
[1737459684481,0.1697454,103840.0,103830.0,0.29256013]
[1737459684693,0.1697454,103840.0,103830.0,0.12152]
[1737459685781,0.048201,103840.0,103830.0,0.12152]
[1737459687495,0.5977454,103840.0,103830.0,0.12152]
[1737459687796,0.67647998,103840.0,103830.0,0.12152]
[1737459689888,0.04821,103820.0,103810.0,0.17104013]
[1737459690091,0.47388898,103820.0,103810.0,0.17104013]
[1737459690388,0.11308898,103820.0,103810.0,0.17104013]
[1737459690801,0.04821,103820.0,103810.0,0.18611213]
[1737459691098,0.04821,103820.0,103810.0,0.015072]
[1737459691297,0.04821,103820.0,103810.0,0.078712]
[1737459691989,0.04921,103820.0,103810.0,0.089712]
[1737459692396,0.11408898,103820.0,103810.0,0.089712]
[1737459692783,0.04921,103820.0,103810.0,0.089712]
[1737459692989,0.001,103820.0,103810.0,0.562327]
[1737459693492,0.001,103820.0,103810.0,0.547255]
[1737459693699,0.001,103820.0,103810.0,0.61213398]
[1737459693893,0.001,103820.0,103810.0,0.547255]
[1737459694995,0.048208,103830.0,103820.0,0.04821]
[1737459695198,0.3704536,103840.0,103820.0,0.53761]
[1737459695388,0.048205,103830.0,103820.0,0.53761]
[1737459695695,0.07453258,103840.0,103820.0,0.53761]
[1737459695899,0.12273658,103840.0,103820.0,0.53761]
[1737459696306,0.0578576,103840.0,103820.0,0.537608]
[1737459697193,0.048205,103830.0,103820.0,0.4894]
[1737459697389,0.11308398,103830.0,103820.0,0.4894]
[1737459697596,0.048205,103830.0,103820.0,0.1286]
[1737459697799,0.048205,103830.0,103820.0,0.4894]
[1737459697998,0.048205,103830.0,103820.0,0.1286]
[1737459698299,0.048205,103830.0,103820.0,0.4894]
[1737459699005,0.049205,103830.0,103820.0,0.4894]
[1737459699199,0.47488398,103830.0,103820.0,0.0646]
[1737459699399,0.24918398,103830.0,103820.0,0.0646]
[1737459699705,0.248881,103830.0,103820.0,0.0646]
[1737459699904,1.68400202,103830.0,103820.0,0.0646]
[1737459700404,0.11880202,103830.0,103820.0,0.0646]
[1737459700593,0.04890202,103830.0,103820.0,0.0646]
[1737459701803,0.04890202,103830.0,103820.0,0.47361]
[1737459702411,0.001,103830.0,103820.0,0.47361]
[1737459702605,0.001,103830.0,103820.0,0.53848898]
[1737459702900,0.048201,103840.0,103820.0,0.47461]
[1737459703103,0.048201,103840.0,103830.0,0.409005]
[1737459703303,0.048201,103840.0,103830.0,0.476405]
[1737459703497,0.11307998,103840.0,103830.0,0.3608]
[1737459705104,0.048205,103830.0,103820.0,0.0646]
[1737459705407,0.11308398,103830.0,103820.0,0.0646]
[1737459705915,0.048205,103830.0,103820.0,0.0646]
[1737459706399,0.049205,103830.0,103820.0,0.0646]
[1737459706606,0.11408398,103830.0,103820.0,0.0646]
[1737459706808,0.18368398,103830.0,103820.0,0.0646]
[1737459707401,0.54448398,103830.0,103820.0,0.0646]
[1737459708205,0.04821,103820.0,103810.0,0.4282]
[1737459708407,0.04821,103820.0,103810.0,0.3608]
[1737459708602,0.11308898,103820.0,103810.0,0.3608]
[1737459709000,0.17998898,103820.0,103810.0,0.3608]
[1737459709510,0.17998898,103820.0,103810.0,0.3618]
[1737459710009,0.22104656,103830.0,103810.0,0.56457398]
[1737459710198,0.22104656,103830.0,103820.0,0.40901]
[1737459710401,0.22104656,103830.0,103820.0,0.54711]
[1737459710805,0.22104656,103830.0,103820.0,0.4989]
[1737459711107,0.22104656,103830.0,103820.0,0.54711]
[1737459711707,0.22104656,103830.0,103820.0,0.4989]
[1737459711708,0.28592554,103830.0,103820.0,0.4989]
[1737459712200,0.28592554,103830.0,103820.0,0.4999]
[1737459712396,0.28692554,103830.0,103820.0,0.3618]
[1737459713810,0.11408698,103830.0,103820.0,0.3618]
[1737459714211,0.11408698,103830.0,103820.0,0.3608]
[1737459715211,0.11308698,103830.0,103820.0,0.3608]
[1737459715411,0.11408698,103830.0,103820.0,0.3608]
[1737459717101,0.04821,103820.0,103810.0,0.41188]
[1737459717402,0.40901,103820.0,103810.0,0.05108]
[1737459717604,0.47388898,103820.0,103810.0,0.05108]
[1737459718210,0.40901,103820.0,103810.0,0.05108]
[1737459719007,0.04921,103820.0,103810.0,0.41864]
[1737459719807,0.05872381,103820.0,103810.0,0.41864]
[1737459720709,0.23206293,103820.0,103810.0,0.41864]
[1737459721115,0.29694191,103820.0,103810.0,0.41864]
[1737459721716,0.23206293,103820.0,103810.0,0.41864]
[1737459722020,0.23106293,103820.0,103810.0,0.41864]
[1737459723420,0.29594191,103820.0,103810.0,0.41864]
[1737459723716,0.29694191,103820.0,103810.0,0.41864]
[1737459724117,0.23206293,103820.0,103810.0,0.41864]
[1737459724422,0.23206293,103820.0,103810.0,0.466855]
[1737459724613,0.23206293,103820.0,103810.0,0.41864]
[1737459725213,0.23206293,103820.0,103810.0,0.466855]
[1737459727215,0.23206293,103820.0,103810.0,0.409015]
[1737459727526,0.29694191,103820.0,103810.0,0.3608]
[1737459728420,0.048215,103810.0,103800.0,1.05940309]
[1737459728617,0.11309398,103810.0,103800.0,1.05940309]
[1737459728920,0.24679398,103810.0,103800.0,1.05940309]
[1737459729219,0.24679398,103810.0,103800.0,1.07447506]
[1737459729810,0.24679398,103810.0,103800.0,1.07547506]
[1737459730516,0.048215,103810.0,103800.0,1.12369406]
[1737459731120,0.048215,103810.0,103800.0,1.25569406]
[1737459731322,0.048215,103810.0,103800.0,1.24062209]
[1737459731522,0.048215,103810.0,103800.0,1.19240309]
[1737459731818,0.048215,103810.0,103800.0,1.06040309]
[1737459731819,0.11309398,103810.0,103800.0,1.06040309]
[1737459732420,0.048215,103810.0,103800.0,1.06040309]
[1737459732619,0.048215,103810.0,103800.0,0.66216]
[1737459732819,0.048215,103810.0,103800.0,0.72545109]
[1737459733219,0.048215,103810.0,103800.0,0.58949109]
[1737459734617,0.048215,103810.0,103800.0,0.574419]
[1737459735716,0.048215,103810.0,103800.0,0.58949099]
[1737459736111,0.048215,103810.0,103800.0,0.4618]
[1737459736317,0.47389398,103810.0,103800.0,0.101]
[1737459736816,1.67889398,103810.0,103800.0,0.101]
[1737459737017,0.17889398,103810.0,103800.0,0.101]
[1737459737521,1.67889398,103810.0,103800.0,0.11607398]
[1737459737723,2.03969398,103810.0,103800.0,0.11607398]
[1737459738119,2.03969398,103810.0,103800.0,0.101]
[1737459738622,0.11309398,103810.0,103800.0,0.101]
[1737459739527,0.11309398,103810.0,103800.0,0.47687355]
[1737459739920,0.11309398,103810.0,103800.0,0.11607355]
[1737459740426,0.048212,103820.0,103810.0,0.048215]
[1737459740619,0.048212,103820.0,103810.0,0.409015]
[1737459740822,0.11309098,103820.0,103810.0,0.3608]
[1737459742225,0.11309098,103820.0,103810.0,0.409015]
[1737459742626,0.11409098,103820.0,103810.0,0.409015]
[1737459743825,0.049212,103820.0,103810.0,0.409015]
[1737459744025,0.11409098,103820.0,103810.0,0.409015]
[1737459744226,0.048215,103810.0,103800.0,0.72344013]
[1737459744428,0.048215,103810.0,103800.0,0.77165913]
[1737459745530,0.048215,103810.0,103800.0,0.77265913]
[1737459746130,0.11309398,103810.0,103800.0,0.36364013]
[1737459746734,0.11309398,103810.0,103800.0,0.37871349]
[1737459747626,0.11309398,103810.0,103800.0,0.20767336]
[1737459748029,0.11309398,103810.0,103800.0,0.11607336]
[1737459752729,0.048215,103810.0,103800.0,0.11607336]
[1737459752932,0.11309398,103810.0,103800.0,0.11607336]
[1737459754325,0.048215,103810.0,103800.0,0.11607336]
[1737459755132,0.11309398,103810.0,103800.0,0.11607336]
[1737459757130,0.47389398,103810.0,103800.0,0.11607336]
[1737459757330,0.48357402,103810.0,103800.0,0.11607336]
[1737459758942,0.048219,103800.0,103790.0,0.03042648]
[1737459759134,0.67537696,103800.0,103790.0,0.03042648]
[1737459759931,0.61049798,103800.0,103790.0,0.03042648]
[1737459760135,0.61049798,103800.0,103780.0,0.46134309]
[1737459760326,0.11310298,103790.0,103780.0,0.46134309]
[1737459760527,0.048224,103790.0,103780.0,0.46134309]
[1737459760842,0.184822,103800.0,103790.0,0.001]
[1737459761037,0.45135421,103800.0,103790.0,0.001]
[1737459761342,0.45135421,103800.0,103790.0,0.006]
[1737459761641,0.048224,103790.0,103780.0,0.4879]
[1737459761841,0.11410298,103790.0,103780.0,0.4989]
[1737459762134,0.049224,103790.0,103780.0,0.4989]
[1737459762546,0.049224,103790.0,103780.0,0.4959]
[1737459762932,0.11410298,103790.0,103780.0,0.3688]
[1737459763542,0.11310298,103790.0,103780.0,0.3608]
[1737459764046,0.11410298,103790.0,103780.0,0.3688]
[1737459764251,0.11410298,103790.0,103780.0,0.3718]
[1737459765742,0.049224,103790.0,103780.0,0.3718]
[1737459766242,0.11410298,103790.0,103780.0,0.3718]
[1737459766838,0.12375015,103790.0,103780.0,0.3718]
[1737459767440,0.05887117,103790.0,103780.0,0.3718]
[1737459769249,0.001,103790.0,103780.0,0.3718]
[1737459769458,0.001,103790.0,103780.0,0.420029]
[1737459771146,0.049224,103790.0,103780.0,0.43510314]
[1737459773240,0.001,103790.0,103780.0,0.49998212]
[1737459774643,0.04822,103800.0,103780.0,0.49998212]
[1737459774846,0.04822,103800.0,103790.0,0.47390298]
[1737459775054,0.04822,103800.0,103790.0,0.605924]
[1737459775250,0.04822,103800.0,103790.0,0.62099814]
[1737459776551,0.11309598,103810.0,103790.0,0.62099814]
[1737459776756,0.048217,103810.0,103800.0,0.409019]
[1737459777052,0.11309598,103810.0,103800.0,0.3608]
[1737459777443,0.048217,103810.0,103800.0,0.409019]
[1737459778046,0.11309598,103810.0,103800.0,0.409019]
[1737459778246,0.11309598,103810.0,103800.0,0.3628]
[1737459778646,0.11309598,103810.0,103800.0,0.3778723]
[1737459779140,0.048217,103810.0,103800.0,0.4260913]
[1737459779352,0.048217,103810.0,103800.0,0.411019]
[1737459781850,0.05768147,103820.0,103810.0,0.048215]
[1737459782045,0.20165323,103830.0,103820.0,0.04821]
[1737459782249,0.20165323,103830.0,103820.0,0.47591]
[1737459782550,0.44483321,103840.0,103830.0,0.048205]
[1737459782752,0.44483321,103840.0,103830.0,0.409005]
[1737459782753,0.31473321,103840.0,103830.0,0.409005]
[1737459782950,0.24985423,103840.0,103830.0,0.409005]
[1737459783258,0.20165323,103840.0,103830.0,0.409005]
[1737459784355,0.09115094,103840.0,103830.0,0.409005]
[1737459784556,0.04115094,103840.0,103830.0,0.47388398]
[1737459784860,0.48922895,103850.0,103840.0,0.048201]
[1737459785059,0.48922895,103850.0,103840.0,0.409001]
[1737459786145,0.17295298,103850.0,103840.0,0.409001]
[1737459786548,0.17295298,103850.0,103840.0,0.502521]
[1737459787061,0.22114898,103850.0,103840.0,0.502521]
[1737459789653,0.22114898,103850.0,103840.0,0.56739998]
[1737459789854,0.22114898,103850.0,103840.0,0.502521]
[1737459790049,0.048196,103850.0,103840.0,0.502521]
[1737459790352,0.048196,103850.0,103840.0,0.409001]
[1737459790657,0.048196,103850.0,103830.0,0.46876]
[1737459790658,0.048201,103840.0,103830.0,0.46876]
[1737459791059,0.243001,103840.0,103830.0,0.46876]
[1737459792057,0.048201,103840.0,103830.0,0.516965]
[1737459793064,0.243897,103850.0,103840.0,0.048201]
[1737459793352,0.243897,103850.0,103840.0,0.47387998]
[1737459793559,0.243897,103850.0,103840.0,0.409001]
[1737459793866,0.47386798,103870.0,103840.0,0.47387998]
[1737459794159,0.048193,103860.0,103840.0,0.47387998]
[1737459794363,0.5552,103870.0,103850.0,0.47387198]
[1737459794364,0.242589,103870.0,103850.0,0.47387198]
[1737459794560,0.242589,103870.0,103850.0,0.408993]
[1737459794753,0.242589,103870.0,103860.0,0.408991]
[1737459795155,0.30746798,103870.0,103860.0,0.3608]
[1737459796759,0.30746798,103870.0,103860.0,0.408991]
[1737459797152,0.242589,103870.0,103860.0,0.408991]
[1737459797357,0.30746798,103870.0,103860.0,0.408991]
[1737459797554,0.242589,103870.0,103860.0,0.408991]
[1737459799470,0.242589,103870.0,103860.0,0.3608]
[1737459799657,0.242589,103870.0,103860.0,0.408991]
[1737459799858,0.242589,103870.0,103860.0,0.048191]
[1737459800867,0.1944,103870.0,103860.0,0.048191]
[1737459801759,0.1944,103870.0,103860.0,0.408991]
[1737459801961,0.242587,103870.0,103860.0,0.408991]
[1737459802462,0.1944,103870.0,103860.0,0.408991]
[1737459803969,0.242587,103870.0,103860.0,0.408991]
[1737459806666,0.114887,103870.0,103860.0,0.408991]
[1737459807871,0.0667,103870.0,103860.0,0.408991]
[1737459808772,0.114887,103870.0,103860.0,0.408991]
[1737459811573,0.114887,103870.0,103860.0,0.3608]
[1737459812469,0.048191,103860.0,103850.0,0.53184013]
[1737459814671,0.048191,103860.0,103850.0,0.3608]
[1737459816378,0.0667,103870.0,103850.0,0.47387498]
[1737459816677,0.048187,103870.0,103860.0,0.11306998]
[1737459816979,0.048187,103870.0,103860.0,0.048191]
[1737459817180,0.048187,103870.0,103850.0,0.64491511]
[1737459817370,0.096377,103870.0,103850.0,0.64491511]
[1737459817570,0.048187,103870.0,103850.0,0.64491511]
[1737459817772,0.048187,103870.0,103850.0,0.69310811]
[1737459818081,0.048187,103870.0,103860.0,0.048191]
[1737459818471,0.18392438,103880.0,103860.0,0.47386998]
[1737459818776,0.18392438,103880.0,103860.0,0.66586798]
[1737459819182,0.23210938,103880.0,103860.0,0.66586798]
[1737459819376,0.18392438,103880.0,103860.0,0.66586798]
[1737459819577,0.18392438,103880.0,103870.0,0.048187]
[1737459820375,0.05772438,103880.0,103870.0,0.048187]
[1737459820574,0.05772438,103880.0,103870.0,0.3608]
[1737459820773,0.05772438,103880.0,103860.0,1.06411207]
[1737459820978,0.05772438,103880.0,103860.0,1.06411107]
[1737459821381,0.05772438,103880.0,103860.0,1.11229907]
[1737459821882,0.10590938,103880.0,103860.0,1.06411007]
[1737459822082,0.05772438,103880.0,103860.0,1.11229907]
[1737459823285,0.05772438,103880.0,103870.0,0.048187]
[1737459824087,0.05772438,103880.0,103870.0,0.408987]
[1737459824396,0.05772438,103880.0,103870.0,0.58002713]
[1737459826887,0.00954038,103880.0,103870.0,0.58002713]
[1737459827080,0.12717898,103890.0,103870.0,0.58002713]
[1737459827284,0.048182,103880.0,103870.0,0.58002713]
[1737459828181,0.048182,103880.0,103870.0,0.53184013]
[1737459829699,0.048182,103880.0,103870.0,0.3608]
[1737459829992,0.048182,103880.0,103860.0,1.00867263]
[1737459831295,0.048187,103870.0,103860.0,1.00867263]
[1737459831899,0.048187,103870.0,103860.0,0.75904309]
[1737459832295,0.246487,103870.0,103860.0,0.75904309]
[1737459833293,0.048187,103870.0,103860.0,0.87211307]
[1737459833491,0.048187,103870.0,103860.0,0.86973409]
[1737459834191,0.048183,103880.0,103870.0,0.048186]
[1737459834386,0.048183,103880.0,103870.0,0.408986]
[1737459834592,0.048183,103880.0,103870.0,0.1331]
[1737459836298,0.048183,103880.0,103870.0,0.181287]
[1737459838294,0.048183,103880.0,103870.0,0.542087]
[1737459838698,0.048183,103880.0,103870.0,0.181287]
[1737459838887,0.048187,103870.0,103860.0,0.58003113]
[1737459840593,0.048185,103880.0,103860.0,0.64491011]
[1737459840800,0.048185,103880.0,103870.0,0.408987]
[1737459840997,0.048185,103880.0,103860.0,0.64490811]
[1737459841295,0.048185,103880.0,103870.0,0.408987]
[1737459841892,0.048185,103880.0,103870.0,0.536387]
[1737459842596,0.12612339,103890.0,103880.0,0.048182]
[1737459842799,0.12612339,103890.0,103880.0,0.408982]
[1737459844997,0.12612339,103890.0,103880.0,0.048182]
[1737459845298,0.12612339,103890.0,103870.0,0.66796298]
[1737459846914,0.12612339,103890.0,103870.0,1.06620507]
[1737459847107,0.12612339,103890.0,103870.0,1.07594778]
[1737459849503,0.05782339,103890.0,103880.0,0.408982]
[1737459849695,0.1,103900.0,103880.0,0.47386098]
[1737459849900,0.2013,103930.0,103910.0,0.048168]
[1737459850098,0.249462,103930.0,103920.0,0.3608]
[1737459850506,0.249462,103930.0,103920.0,0.408964]
[1737459850705,0.31434098,103930.0,103920.0,0.3608]
[1737459850905,0.31434098,103930.0,103920.0,0.408964]
[1737459851502,0.31434098,103930.0,103910.0,0.42567898]
[1737459851503,0.048164,103920.0,103910.0,0.408967]
[1737459854802,0.048164,103920.0,103910.0,0.47384598]
[1737459855011,0.048164,103920.0,103910.0,0.60554598]
[1737459855212,0.249463,103930.0,103920.0,0.048164]
[1737459855406,0.249463,103930.0,103920.0,0.408964]
[1737459857613,0.31434198,103930.0,103920.0,0.408964]
[1737459858613,0.249463,103930.0,103920.0,0.408964]
[1737459861418,0.0579468,103940.0,103930.0,0.048159]
[1737459861624,0.0579468,103940.0,103930.0,0.408959]
[1737459861922,0.12282578,103940.0,103930.0,0.3608]
[1737459862520,0.0097908,103940.0,103930.0,0.3608]
[1737459862826,0.048157,103940.0,103930.0,0.3608]
[1737459863022,0.11303598,103940.0,103930.0,0.3608]
[1737459863223,0.048157,103940.0,103930.0,0.408959]
[1737459863418,0.3608,103960.0,103940.0,0.04815]
[1737459863621,0.28824198,103970.0,103960.0,0.048145]
[1737459863818,0.3887377,103980.0,103970.0,0.048141]
[1737459863819,0.23427082,103980.0,103970.0,0.048141]
[1737459864021,0.23427082,103980.0,103970.0,0.53641998]
[1737459865231,0.23427082,103980.0,103970.0,0.62693998]
[1737459865923,0.28240682,103980.0,103970.0,0.62693998]
[1737459866123,0.048136,103980.0,103970.0,0.62693998]
[1737459866727,0.048136,103980.0,103970.0,0.09052]
[1737459867030,0.47381498,103980.0,103970.0,0.09052]
[1737459867221,0.408936,103980.0,103970.0,0.09052]
[1737459867417,0.048136,103980.0,103970.0,0.09052]
[1737459867631,0.048136,103980.0,103970.0,0.15539898]
[1737459867824,0.048136,103980.0,103970.0,0.56433998]
[1737459868025,0.0095002,103990.0,103970.0,0.53451998]
[1737459868230,0.0095002,103990.0,103980.0,0.55457898]
[1737459868731,0.0576332,103990.0,103980.0,0.55457898]
[1737459869031,4.035e-05,103990.0,103980.0,0.60271498]
[1737459869629,4.035e-05,103990.0,103980.0,0.537836]
[1737459869835,4.035e-05,103990.0,103980.0,0.60271498]
[1737459871231,4.035e-05,103990.0,103980.0,0.65759498]
[1737459872940,4.035e-05,103990.0,103980.0,0.72247396]